bitfinex-derivatives/quotes_ETHF0:USTF0_20250323
["timestamp","ask_amount","ask_price","bid_price","bid_amount"]
[1742714084905,2.31378,2006.2,2006.1,2.37363]
[1742714085404,2.31378,2006.2,2006.1,1.3765]
[1742714085807,2.31378,2006.2,2006.1,2.37363]
[1742714086305,2.31378,2006.2,2006.1,1.3765]
[1742714096906,2.49284,2006.1,2005.6,0.00747831]
[1742714097202,2.49284,2006.1,2005.7,1.89861798]
[1742714097203,0.99728,2005.8,2005.7,1.89861798]
[1742714097396,0.99728,2005.8,2005.7,1.89836083]
[1742714098003,2.34578,2005.8,2005.7,1.89836083]
[1742714098200,2.34578,2005.8,2005.7,1.3782]
[1742714102414,0.99733,2005.7,2005.6,0.00747831]
[1742714102608,3.07073,2005.7,2005.6,1.84820864]
[1742714102811,3.07073,2005.7,2005.6,1.84820716]
[1742714103108,3.07073,2005.7,2005.6,1.32877831]
[1742714111619,3.07073,2005.7,2005.6,2.02387831]
[1742714112717,3.07073,2005.7,2005.6,1.32877831]
[1742714115219,3.07073,2005.7,2005.6,2.95675831]
[1742714115620,3.07073,2005.7,2005.6,1.95937831]
[1742714115815,0.6571,2005.9,2005.6,1.95937831]
[1742714116009,1.298,2005.8,2005.7,1.3874]
[1742714116323,3.134,2006.1,2005.7,1.3874]
[1742714116521,2.2952,2006.0,2005.9,0.99723]
[1742714116816,1.298,2006.0,2005.9,0.99723]
[1742714117013,1.298,2006.0,2005.9,1.62783]
[1742714117517,2.29518,2006.0,2005.9,1.62783]
[1742714117723,1.298,2006.0,2005.9,1.62783]
[1742714117917,2.29518,2006.0,2005.9,0.6306]
[1742714119219,2.29518,2006.0,2005.9,1.62783]
[1742714119419,2.29518,2006.0,2005.9,0.6306]
[1742714128327,2.29518,2006.0,2005.9,1.9]
[1742714130326,2.29518,2006.0,2005.9,1.2694]
[1742714134134,2.29518,2006.0,2005.9,4.4772]
[1742714141633,2.29518,2006.0,2005.9,1.2694]
[1742714141831,2.29518,2006.0,2005.9,4.4772]
[1742714143241,2.29518,2006.0,2005.9,4.9970159]
[1742714145031,2.29518,2006.0,2005.9,4.99713556]
[1742714145834,0.99733,2005.7,2005.6,3.21527831]
[1742714146034,0.99733,2005.7,2005.6,3.73554115]
[1742714147229,0.99733,2005.7,2005.6,4.50697831]
[1742714147429,0.99733,2005.7,2005.6,5.02718116]
[1742714147629,1.69243,2005.7,2005.6,5.02718116]
[1742714149333,1.69243,2005.7,2005.6,5.02701897]
[1742714149740,1.69243,2005.7,2005.6,5.02701976]
[1742714152844,1.69243,2005.7,2005.6,4.50697831]
[1742714154345,3.8291,2005.7,2005.3,3.2078]
[1742714154639,0.99753,2005.3,2005.2,1.3426]
[1742714155336,0.99753,2005.3,2005.2,0.6975]
[1742714155538,1.65073,2005.3,2005.2,0.6975]
[1742714155851,0.99758,2005.2,2005.1,1.2672]
[1742714156143,2.27748,2005.2,2005.1,1.2672]
[1742714170052,2.91098,2005.2,2005.1,1.2672]
[1742714170541,6.11878,2005.2,2005.1,1.2672]
[1742714172347,0.99763,2005.1,2005.0,0.68717831]
[1742714172555,2.26533,2005.1,2005.0,0.68717831]
[1742714173755,2.26533,2005.1,2005.0,2.06987831]
[1742714184263,2.26533,2005.1,2005.0,2.59080613]
[1742714185264,2.26533,2005.1,2005.0,2.59097418]
[1742714187164,2.26533,2005.1,2005.0,1.91135777]
[1742714187371,2.26533,2005.1,2005.0,1.39017831]
[1742714188063,2.26533,2005.1,2005.0,0.00747831]
[1742714188461,5.40033,2005.1,2005.0,0.00747831]
[1742714188866,6.19839817,2005.1,2005.0,0.00747831]
[1742714189461,5.40033,2005.1,2005.0,0.00747831]
[1742714191064,6.19799449,2005.1,2005.0,0.00747831]
[1742714191366,14.64199449,2005.1,2005.0,0.00747831]
[1742714191772,14.64199449,2005.1,2004.5,0.6866]
[1742714191773,0.99788,2004.6,2004.5,0.6866]
[1742714191958,0.99793,2004.5,2004.4,2.25978]
[1742714192157,2.28093,2004.5,2004.4,1.78261208]
[1742714193465,2.28093,2004.5,2004.4,1.2618]
[1742714193666,2.28093,2004.5,2004.4,1.78221104]
[1742714193867,2.28093,2004.5,2004.4,1.78221424]
[1742714194166,2.28093,2004.5,2004.4,1.78220671]
[1742714194369,2.28093,2004.5,2004.4,1.2618]
[1742714194960,2.28093,2004.5,2004.4,1.9213]
[1742714209572,2.28093,2004.5,2004.4,2.91928]
[1742714210378,1.3175,2004.7,2004.4,2.91928]
[1742714210379,1.64366,2004.7,2004.6,0.99788]
[1742714210577,0.99788,2004.6,2004.5,1.3733]
[1742714211683,2.33228,2004.6,2004.5,1.3733]
[1742714260607,0.653,2004.9,2004.5,4.5811]
[1742714260911,0.99783,2004.7,2004.6,2.33405]
[1742714261111,0.99783,2004.7,2004.6,6.80405]
[1742714261307,0.99783,2004.7,2004.6,5.8062]
[1742714262712,2.30541,2004.8,2004.6,5.8062]
[1742714262913,2.30541,2004.8,2004.7,1.335]
[1742714263513,2.30541,2004.8,2004.7,2.33283]
[1742714266917,1.3076,2004.8,2004.7,2.33283]
[1742714267117,2.30538,2004.8,2004.7,2.33283]
[1742714267513,2.30538,2004.8,2004.7,1.335]
[1742714267913,2.30538,2004.8,2004.7,2.33283]
[1742714268217,1.3076,2004.8,2004.7,2.33283]
[1742714269823,2.30538,2004.8,2004.7,2.33283]
[1742714270421,1.3076,2004.8,2004.7,2.33283]
[1742714273324,2.30538,2004.8,2004.7,2.33283]
[1742714279427,1.3076,2004.8,2004.7,2.33283]
[1742714281942,2.30538,2004.8,2004.7,2.33283]
[1742714282145,1.3076,2004.8,2004.7,2.33283]
[1742714282640,1.3076,2004.8,2004.7,2.85316088]
[1742714283246,0.6752,2005.0,2004.9,0.99773]
[1742714283433,0.6752,2005.0,2004.9,1.51806088]
[1742714283634,0.6752,2005.0,2004.9,0.99773]
[1742714284739,1.975,2005.0,2004.9,2.32443]
[1742714285642,2.97268,2005.0,2004.9,2.32443]
[1742714288040,1.975,2005.0,2004.9,2.32443]
[1742714288438,2.97268,2005.0,2004.9,2.32443]
[1742714288847,1.975,2005.0,2004.9,2.32443]
[1742714289445,1.975,2005.0,2004.9,2.84482271]
[1742714290043,1.975,2005.0,2004.9,2.32443]
[1742714290238,1.975,2005.0,2004.9,2.84482436]
[1742714290647,1.975,2005.0,2004.9,2.84499072]
[1742714292347,1.975,2005.0,2004.9,2.84496258]
[1742714294244,1.975,2005.0,2004.9,2.84494509]
[1742714297845,1.975,2005.0,2004.9,2.84472278]
[1742714298246,1.975,2005.0,2004.9,2.84471188]
[1742714298548,2.97268,2005.0,2004.9,2.84471188]
[1742714299645,2.97268,2005.0,2004.9,2.84473248]
[1742714299839,1.975,2005.0,2004.9,2.84473248]
[1742714300245,1.975,2005.0,2004.9,2.32443]
[1742714301456,1.975,2005.0,2004.9,2.84475834]
[1742714301657,2.97268,2005.0,2004.9,2.84475834]
[1742714302257,2.97268,2005.0,2004.9,1.84702834]
[1742714302951,0.99773,2004.9,2004.8,3.134]
[1742714303154,4.5507,2004.9,2004.7,4.4213]
[1742714303455,2.36798,2004.8,2004.7,3.134]
[1742714303658,3.71088,2004.8,2004.7,3.134]
[1742714307559,3.71088,2004.8,2004.7,4.13183]
[1742714307759,3.71088,2004.8,2004.7,5.43303]
[1742714308555,3.71088,2004.8,2004.7,4.4352]
[1742714308762,3.71088,2004.8,2004.7,5.43303]
[1742714311757,3.71088,2004.8,2004.7,4.4352]
[1742714312059,3.71088,2004.8,2004.7,5.43303]
[1742714312361,3.71088,2004.8,2004.7,4.4352]
[1742714321857,3.71088,2004.8,2004.7,5.43303]
[1742714323067,3.71088,2004.8,2004.7,4.4352]
[1742714326369,3.71088,2004.8,2004.7,5.43303]
[1742714326557,1.3429,2004.8,2004.7,6.06793]
[1742714326759,3.2078,2004.9,2004.8,0.99778]
[1742714326963,3.2078,2004.9,2004.8,2.31278]
[1742714327171,4.5707,2004.9,2004.8,2.31278]
[1742714329073,5.56843,2004.9,2004.8,2.31278]
[1742714329572,4.5707,2004.9,2004.8,2.31278]
[1742714330475,5.56843,2004.9,2004.8,2.31278]
[1742714332569,4.5707,2004.9,2004.8,2.31278]
[1742714334275,4.5707,2004.9,2004.8,2.83407748]
[1742714336275,4.5707,2004.9,2004.8,2.83402081]
[1742714337169,4.5707,2004.9,2004.8,2.31278]
[1742714344596,5.2191,2004.9,2004.8,2.31278]
[1742714346698,5.2191,2004.9,2004.8,2.83393323]
[1742714350399,2.0113,2004.9,2004.8,2.83393323]
[1742714351100,2.0113,2004.9,2004.8,2.31278]
[1742714351300,2.0113,2004.9,2004.8,2.83362719]
[1742714351695,2.0113,2004.9,2004.8,2.83362032]
[1742714358804,2.0113,2004.9,2004.8,2.83369166]
[1742714360506,2.0113,2004.9,2004.8,2.83372005]
[1742714362510,2.0113,2004.9,2004.8,2.83383124]
[1742714363704,1.3629,2004.9,2004.8,2.83383124]
[1742714364409,1.3629,2004.9,2004.8,2.83375808]
[1742714364809,1.3629,2004.9,2004.8,2.31278]
[1742714365005,1.3629,2004.9,2004.8,2.83375777]
[1742714366509,1.3629,2004.9,2004.8,2.83360847]
[1742714368511,1.3629,2004.9,2004.8,2.83357009]
[1742714370406,1.3629,2004.9,2004.8,2.31278]
[1742714370614,1.3629,2004.9,2004.8,2.83354153]
[1742714371005,1.3629,2004.9,2004.8,2.83353869]
[1742714377117,1.3629,2004.9,2004.8,2.8334707]
[1742714378718,1.3629,2004.9,2004.8,2.83348104]
[1742714380717,1.3629,2004.9,2004.8,2.83350042]
[1742714382921,1.3629,2004.9,2004.8,2.83365772]
[1742714383321,2.0282,2004.9,2004.8,2.83365772]
[1742714383512,3.02593,2004.9,2004.8,1.83587772]
[1742714384618,3.02593,2004.9,2004.8,2.83365772]
[1742714384819,3.02593,2004.9,2004.8,2.83379864]
[1742714385925,3.02593,2004.9,2004.8,2.83376758]
[1742714386723,3.02593,2004.9,2004.8,2.31278]
[1742714390427,3.02593,2004.9,2004.8,1.315]
[1742714395025,3.02593,2004.9,2004.8,1.83576615]
[1742714395324,3.02593,2004.9,2004.8,1.315]
[1742714396729,3.02593,2004.9,2004.8,2.31278]
[1742714398434,3.02593,2004.9,2004.8,2.83354042]
[1742714398627,3.02593,2004.9,2004.8,1.83576042]
[1742714398828,3.02593,2004.9,2004.8,1.315]
[1742714400236,3.02593,2004.9,2004.8,2.31278]
[1742714400437,3.02593,2004.9,2004.8,1.315]
[1742714401839,3.02593,2004.9,2004.8,2.31278]
[1742714403236,3.02593,2004.9,2004.8,1.315]
[1742714403436,3.02593,2004.9,2004.8,2.31278]
[1742714404025,3.02593,2004.9,2004.8,1.315]
[1742714410539,3.02593,2004.9,2004.8,2.31278]
[1742714410842,3.02593,2004.9,2004.8,1.83622111]
[1742714411041,3.02593,2004.9,2004.8,1.83620993]
[1742714411435,3.02593,2004.9,2004.8,2.49570993]
[1742714414544,3.02593,2004.9,2004.8,2.49592725]
[1742714414840,3.02593,2004.9,2004.8,3.49370725]
[1742714415039,3.2078,2005.3,2004.8,5.62892725]
[1742714415245,1.3939,2005.1,2005.0,0.99768]
[1742714415441,1.3939,2005.1,2005.0,2.81340725]
[1742714415636,1.3939,2005.1,2005.0,3.45680725]
[1742714416635,1.3939,2005.1,2005.0,3.45613151]
[1742714417035,1.3939,2005.1,2005.0,3.45613267]
[1742714418745,1.3939,2005.1,2005.0,3.45581416]
[1742714420547,1.3939,2005.1,2005.0,2.93538]
[1742714420852,1.3939,2005.1,2005.0,3.45562523]
[1742714422657,1.3939,2005.1,2005.0,3.45546005]
[1742714423140,1.3939,2005.1,2005.0,3.45545579]
[1742714424559,4.45365187,2005.3,2005.2,0.99758]
[1742714424757,5.83735187,2005.3,2005.2,0.99758]
[1742714425251,5.83735187,2005.3,2005.2,2.34748]
[1742714425455,4.45365187,2005.3,2005.2,5.55528]
[1742714426361,1.3837,2005.4,2005.3,0.99753]
[1742714426564,1.3837,2005.4,2005.3,2.31633]
[1742714445464,1.3837,2005.4,2005.3,2.8363246]
[1742714445667,1.3837,2005.4,2005.3,2.31633]
[1742714445876,1.3837,2005.4,2005.3,2.836325]
[1742714446071,1.3837,2005.4,2005.3,2.8363246]
[1742714446972,1.3837,2005.4,2005.3,2.83635664]
[1742714447969,2.38118,2005.4,2005.3,0.52002664]
[1742714448174,3.01198,2005.4,2005.2,7.33635]
[1742714448362,2.0182,2005.3,2005.2,7.33635]
[1742714448561,2.0182,2005.3,2005.2,7.85645481]
[1742714448974,2.0182,2005.3,2005.2,7.85645335]
[1742714449673,2.0182,2005.3,2005.2,9.19439885]
[1742714450974,2.0182,2005.3,2005.2,9.19444336]
[1742714454885,2.0182,2005.3,2005.2,9.19492118]
[1742714455376,2.0182,2005.3,2005.2,9.19502859]
[1742714456878,2.0182,2005.3,2005.2,9.19502858]
[1742714457984,1.3586,2005.3,2005.2,9.19502858]
[1742714458690,1.3586,2005.3,2005.2,9.19499378]
[1742714460291,1.3586,2005.3,2005.2,8.67425]
[1742714460487,1.3586,2005.3,2005.2,9.19499058]
[1742714461082,1.3586,2005.3,2005.2,8.67425]
[1742714472494,2.0001,2005.3,2005.2,8.67425]
[1742714475709,2.0001,2005.3,2005.2,5.46645]
[1742714475911,2.0001,2005.3,2005.2,8.67425]
[1742714476403,2.0001,2005.3,2005.2,9.30475]
[1742714481423,2.0001,2005.3,2005.2,7.33635]
[1742714487617,2.0001,2005.3,2005.2,7.85710026]
[1742714490425,2.0001,2005.3,2005.2,9.15790026]
[1742714492023,2.0001,2005.3,2005.2,9.1576501]
[1742714495422,1.3586,2005.3,2005.2,9.1576501]
[1742714495628,1.3586,2005.3,2005.2,9.8136501]
[1742714496037,1.3586,2005.3,2005.2,9.8137059]
[1742714496530,1.3586,2005.3,2005.2,9.81370977]
[1742714498123,1.3586,2005.3,2005.2,9.81371759]
[1742714502033,1.3586,2005.3,2005.2,9.81390712]
[1742714504039,1.3586,2005.3,2005.2,9.8139114]
[1742714504439,1.3586,2005.3,2005.2,9.29315]
[1742714504627,1.3586,2005.3,2005.2,9.81391087]
[1742714505337,1.3586,2005.3,2005.2,4.95256087]
[1742714505537,2.0201,2005.3,2005.2,5.95014087]
[1742714506140,2.0201,2005.3,2005.2,5.42938]
[1742714506335,2.0201,2005.3,2005.2,5.95019703]
[1742714508937,3.01763,2005.3,2005.2,5.95019703]
[1742714509136,2.0201,2005.3,2005.2,5.95019703]
[1742714510544,3.01763,2005.3,2005.2,5.95019703]
[1742714510740,2.0201,2005.3,2005.2,5.95001579]
[1742714516244,2.0201,2005.3,2005.2,5.94987517]
[1742714517645,0.77478,2005.9,2005.3,2.49384]
[1742714517946,0.77478,2005.9,2005.6,0.99738]
[1742714517947,1.2787,2005.7,2005.6,0.99738]
[1742714518148,1.2787,2005.7,2005.6,2.97088]
[1742714518535,2.44475,2005.9,2005.7,0.99729]
[1742714518734,2.44475,2005.9,2005.8,1.9945]
[1742714519240,2.44475,2005.9,2005.8,2.99178]
[1742714519445,1.44748,2005.9,2005.8,2.99178]
[1742714519948,2.81258,2005.9,2005.8,2.99178]
[1742714521140,3.80981,2005.9,2005.8,2.99178]
[1742714521544,2.13988,2005.9,2005.8,2.99178]
[1742714521944,2.13988,2005.9,2005.8,6.12178]
[1742714523045,0.77478,2005.9,2005.8,6.12178]
[1742714524650,2.06998,2005.9,2005.8,6.12178]
[1742714526151,0.77478,2005.9,2005.8,6.12178]
[1742714532347,2.15398,2005.9,2005.8,6.12178]
[1742714537762,3.15121,2005.9,2005.8,3.13]
[1742714537948,5.36178,2005.9,2005.6,1.27907831]
[1742714538154,0.99733,2005.7,2005.6,0.00747831]
[1742714538353,2.7125,2005.8,2005.6,1.00483831]
[1742714538354,3.70981,2005.8,2005.6,1.00483831]
[1742714538658,1.3882,2005.7,2005.6,2.27643831]
[1742714545664,1.3882,2005.7,2005.6,2.94243831]
[1742714547367,1.3882,2005.7,2005.6,6.15023831]
[1742714553270,0.77478,2005.9,2005.7,0.9973]
[1742714553271,1.77202,2005.9,2005.7,0.9973]
[1742714553469,1.77202,2005.9,2005.8,1.64148]
[1742714553773,0.77478,2005.9,2005.8,1.64148]
[1742714554174,1.77201,2005.9,2005.8,1.64148]
[1742714554673,3.06291,2005.9,2005.8,2.99178]
[1742714560579,3.06291,2005.9,2005.8,2.34758]
[1742714560779,3.72081,2005.9,2005.8,1.3503]
[1742714562370,0.99733,2005.7,2005.6,8.68272831]
[1742714562577,0.99733,2005.7,2005.6,8.52859811]
[1742714563074,1.63343,2005.7,2005.6,8.52860208]
[1742714563773,2.89323,2005.7,2005.6,9.91920208]
[1742714564381,1.8959,2005.7,2005.6,9.91920208]
[1742714565581,1.8959,2005.7,2005.6,6.71154595]
[1742714565787,1.8959,2005.7,2005.6,9.91934595]
[1742714566281,2.89323,2005.7,2005.6,8.25599595]
[1742714566678,2.89323,2005.7,2005.6,9.25337595]
[1742714566875,2.89323,2005.7,2005.6,8.73325831]
[1742714567183,2.89323,2005.7,2005.6,6.34527831]
[1742714567477,2.89323,2005.7,2005.6,3.21527831]
[1742714568582,6.10103,2005.7,2005.6,0.00747831]
[1742714572186,2.89323,2005.7,2005.6,0.00747831]
[1742714572372,6.10103,2005.7,2005.6,0.00747831]
[1742714575889,2.89323,2005.7,2005.6,0.00747831]
[1742714576087,2.89323,2005.7,2005.6,1.33697831]
[1742714576673,2.89323,2005.7,2005.6,2.33435831]
[1742714577987,2.89323,2005.7,2005.6,1.33697831]
[1742714578385,2.89323,2005.7,2005.6,2.33435831]
[1742714578580,2.89323,2005.7,2005.6,1.33697831]
[1742714579681,2.89323,2005.7,2005.6,2.33435831]
[1742714580088,2.89323,2005.7,2005.6,3.01015831]
[1742714580295,2.89323,2005.7,2005.6,2.01277831]
[1742714587898,2.89323,2005.7,2005.6,1.33697831]
[1742714588398,2.89323,2005.7,2005.6,0.00747831]
[1742714588987,2.89323,2005.7,2005.6,1.36607831]
[1742714589799,2.89323,2005.7,2005.6,2.36345831]
[1742714594102,2.89323,2005.7,2005.6,1.36607831]
[1742714598803,1.2598,2005.7,2005.6,2.36345831]
[1742714599005,1.2598,2005.7,2005.6,2.88418137]
[1742714600807,1.2598,2005.7,2005.6,2.8841412]
[1742714602109,2.25713,2005.7,2005.6,2.8841412]
[1742714602908,1.2598,2005.7,2005.6,2.88411794]
[1742714603407,2.25713,2005.7,2005.6,2.88411794]
[1742714603606,2.25713,2005.7,2005.6,2.36345831]
[1742714605206,0.77478,2005.9,2005.8,0.99728]
[1742714606207,0.77478,2005.9,2005.8,1.51766373]
[1742714606403,0.77478,2005.9,2005.8,0.99728]
[1742714606605,2.13598,2005.9,2005.8,2.38828]
[1742714607107,3.13321,2005.9,2005.8,2.38828]
[1742714617308,3.81611,2005.9,2005.8,2.38828]
[1742714621003,3.81611,2005.9,2005.8,1.391]
[1742714621718,3.81611,2005.9,2005.8,2.38828]
[1742714622819,0.99733,2005.7,2005.6,4.13482831]
[1742714623220,0.99733,2005.7,2005.6,1.00482831]
[1742714623422,1.69203,2005.7,2005.6,1.00482831]
[1742714624319,3.07623,2005.7,2005.6,1.00482831]
[1742714624620,3.07623,2005.7,2005.6,0.00747831]
[1742714625116,3.07623,2005.7,2005.6,1.30847831]
[1742714626323,3.07623,2005.7,2005.6,0.00747831]
[1742714635717,6.28403,2005.7,2005.6,0.00747831]
[1742714637525,3.07623,2005.7,2005.6,0.00747831]
[1742714637824,6.28403,2005.7,2005.6,0.00747831]
[1742714638031,3.07623,2005.7,2005.6,0.00747831]
[1742714638620,6.28403,2005.7,2005.6,0.00747831]
[1742714638821,3.07623,2005.7,2005.6,0.00747831]
[1742714639121,6.28403,2005.7,2005.6,0.00747831]
[1742714643933,9.41303,2005.7,2005.6,0.00747831]
[1742714645939,9.41303,2005.7,2005.4,1.3422]
[1742714645940,22.64292726,2005.7,2004.6,3.2078]
[1742714646234,0.9978,2004.8,2004.7,1.85197721]
[1742714646830,0.9978,2004.8,2004.7,1.3316]
[1742714647032,0.9978,2004.8,2004.7,1.85181329]
[1742714647236,0.9978,2004.8,2004.7,3.67162]
[1742714647534,0.9978,2004.8,2004.7,4.19154591]
[1742714649036,0.9978,2004.8,2004.7,4.191395]
[1742714649235,0.9978,2004.8,2004.7,4.19128584]
[1742714650038,0.99777,2004.9,2004.7,4.19125584]
[1742714650238,0.99777,2004.9,2004.8,1.3408]
[1742714659950,1.63557,2004.9,2004.8,1.3408]
[1742714665544,0.99777,2004.9,2004.8,2.33858]
[1742714666150,0.00747831,2005.0,2004.9,0.99773]
[1742714666349,1.00515831,2005.0,2004.9,1.68943]
[1742714666549,0.00747831,2005.0,2004.9,3.00043]
[1742714669258,1.00515831,2005.0,2004.9,3.00043]
[1742714672861,0.00747831,2005.0,2004.9,3.00043]
[1742714673262,1.30397831,2005.0,2004.9,3.00043]
[1742714674656,0.00747831,2005.0,2004.9,3.52123852]
[1742714675159,0.00747831,2005.0,2004.9,3.52144954]
[1742714677162,0.00747831,2005.0,2004.9,3.5212987]
[1742714677685,0.00747831,2005.0,2004.9,7.36924575]
[1742714679259,0.00747831,2005.0,2004.9,7.36906064]
[1742714679458,0.00747831,2005.0,2004.9,6.72891359]
[1742714679863,0.00747831,2005.0,2004.9,6.72883394]
[1742714681267,0.00747831,2005.0,2004.9,6.72867236]
[1742714683268,0.00747831,2005.0,2004.9,6.72859726]
[1742714684069,0.00747831,2005.0,2004.9,3.52079726]
[1742714684370,0.00747831,2005.0,2004.9,6.72859726]
[1742714685570,1.2619,2005.2,2005.1,0.99763]
[1742714685772,1.2619,2005.2,2005.1,1.51799726]
[1742714686271,1.2619,2005.2,2005.1,3.52689726]
[1742714686873,1.2619,2005.2,2005.1,3.52678483]
[1742714687865,1.2619,2005.2,2005.1,3.52675016]
[1742714689474,1.2619,2005.2,2005.1,3.52671161]
[1742714693385,1.2619,2005.2,2005.1,3.52681121]
[1742714693979,1.2619,2005.2,2005.1,3.52681105]
[1742714695570,1.2619,2005.2,2005.1,3.52693147]
[1742714699480,1.2619,2005.2,2005.1,3.52715994]
[1742714700077,1.2619,2005.2,2005.1,3.52720532]
[1742714701172,1.2619,2005.2,2005.1,3.52732508]
[1742714702481,1.35417831,2005.4,2005.3,0.99753]
[1742714702681,0.00747831,2005.4,2005.3,1.51834526]
[1742714702980,0.00747831,2005.4,2005.3,3.51974715]
[1742714703373,0.00747831,2005.4,2005.3,4.80411914]
[1742714704282,1.3133,2005.5,2005.4,0.99748]
[1742714704581,1.3133,2005.5,2005.4,5.98179715]
[1742714705082,1.3133,2005.5,2005.4,5.98159405]
[1742714707483,1.3133,2005.5,2005.4,5.98115151]
[1742714707681,0.6535,2005.6,2005.5,0.99743]
[1742714707882,0.6535,2005.6,2005.5,5.99960151]
[1742714710568,1.2678,2005.7,2005.6,0.99738]
[1742714710779,1.2678,2005.7,2005.6,6.57925151]
[1742714710980,1.2678,2005.7,2005.6,7.20967581]
[1742714712080,1.2678,2005.7,2005.6,6.57887581]
[1742714712981,1.2678,2005.7,2005.6,6.57857365]
[1742714713382,1.2678,2005.7,2005.6,6.5784711]
[1742714714986,1.2678,2005.7,2005.6,6.57841271]
[1742714716980,1.2678,2005.7,2005.6,6.5783323]
[1742714717884,1.2678,2005.7,2005.6,9.7861323]
[1742714718883,1.2678,2005.7,2005.6,9.26698]
[1742714719077,1.2678,2005.7,2005.6,9.78608775]
[1742714719477,1.2678,2005.7,2005.6,9.78607953]
[1742714720985,1.2678,2005.7,2005.6,9.78608322]
[1742714724992,1.2678,2005.7,2005.6,9.7862394]
[1742714725585,1.2678,2005.7,2005.6,9.78631432]
[1742714727184,1.2678,2005.7,2005.6,9.7864047]
[1742714730099,1.2678,2005.7,2005.6,6.5786047]
[1742714730396,1.2678,2005.7,2005.6,9.7864047]
[1742714730994,1.2678,2005.7,2005.6,9.26698]
[1742714731291,1.2678,2005.7,2005.6,9.78683958]
[1742714731493,1.2678,2005.7,2005.6,9.26698]
[1742714731690,1.2678,2005.7,2005.6,9.78685449]
[1742714733097,1.2678,2005.7,2005.6,9.26698]
[1742714733296,1.2678,2005.7,2005.6,9.78738577]
[1742714733891,1.2678,2005.7,2005.6,9.14088577]
[1742714735199,1.2678,2005.7,2005.6,9.14108861]
[1742714736799,1.2678,2005.7,2005.6,9.14113925]
[1742714737199,1.2678,2005.7,2005.6,9.14122001]
[1742714739092,1.2678,2005.7,2005.6,9.14126931]
[1742714739292,1.2678,2005.7,2005.6,9.14132823]
[1742714741102,1.2678,2005.7,2005.6,8.62048]
[1742714741302,1.2678,2005.7,2005.6,9.14140621]
[1742714743701,1.2678,2005.7,2005.6,9.14138189]
[1742714745305,1.2678,2005.7,2005.6,9.14137264]
[1742714747000,1.2678,2005.7,2005.6,9.14137079]
[1742714747402,1.2678,2005.7,2005.6,9.14135624]
[1742714749400,1.2678,2005.7,2005.6,9.14135725]
[1742714749899,1.2678,2005.7,2005.6,9.14135221]
[1742714751308,1.2678,2005.7,2005.6,5.93355221]
[1742714751514,1.2678,2005.7,2005.6,9.14135221]
[1742714752310,1.2678,2005.7,2005.6,5.93355221]
[1742714752713,1.2678,2005.7,2005.6,9.78146627]
[1742714754006,1.2678,2005.7,2005.6,6.57366627]
[1742714754205,1.2678,2005.7,2005.6,9.78146627]
[1742714755416,1.2678,2005.7,2005.6,9.78146688]
[1742714756216,1.2678,2005.7,2005.6,6.57366688]
[1742714756711,1.2678,2005.7,2005.6,9.78146688]
[1742714759522,1.2678,2005.7,2005.6,9.78151965]
[1742714761515,1.2678,2005.7,2005.6,6.57371965]
[1742714761818,1.2678,2005.7,2005.6,9.78151965]
[1742714762314,1.2678,2005.7,2005.6,9.26059406]
[1742714762513,1.2678,2005.7,2005.6,8.62048]
[1742714763510,1.2678,2005.7,2005.6,9.78169431]
[1742714764919,1.2678,2005.7,2005.6,9.78169009]
[1742714766916,1.2678,2005.7,2005.6,9.78169857]
[1742714769016,1.2678,2005.7,2005.6,9.78170299]
[1742714769414,1.2678,2005.7,2005.6,9.7816992]
[1742714771007,1.2678,2005.7,2005.6,9.78165361]
[1742714775013,1.2678,2005.7,2005.6,9.78168752]
[1742714775217,1.2678,2005.7,2005.6,6.57388752]
[1742714775406,1.2678,2005.7,2005.6,9.78169928]
[1742714776812,1.2678,2005.7,2005.6,6.57389928]
[1742714777020,1.2678,2005.7,2005.6,9.78171569]
[1742714781128,1.2678,2005.7,2005.6,9.78169751]
[1742714781328,1.2678,2005.7,2005.6,6.57389751]
[1742714781529,1.2678,2005.7,2005.6,9.78170434]
[1742714782226,1.2678,2005.7,2005.6,6.57390434]
[1742714782427,1.2678,2005.7,2005.6,9.78170434]
[1742714783127,1.2678,2005.7,2005.6,9.78172274]
[1742714784027,1.2678,2005.7,2005.6,6.57392274]
[1742714784229,1.2678,2005.7,2005.6,9.78172274]
[1742714785119,1.2678,2005.7,2005.6,9.78167069]
[1742714787228,1.2678,2005.7,2005.6,9.78167529]
[1742714787422,1.2678,2005.7,2005.6,6.05295225]
[1742714787619,1.2678,2005.7,2005.6,9.26075225]
[1742714788030,1.2678,2005.7,2005.6,6.05295225]
[1742714788230,1.2678,2005.7,2005.6,9.26075225]
[1742714792448,1.2678,2005.7,2005.6,6.05295225]
[1742714792634,1.2678,2005.7,2005.6,9.26075225]
[1742714800246,1.2678,2005.7,2005.6,6.05295225]
[1742714800447,1.2678,2005.7,2005.6,9.26075225]
[1742714804443,1.2678,2005.7,2005.6,6.05295225]
[1742714804752,1.2678,2005.7,2005.6,9.26075225]
[1742714805550,1.2678,2005.7,2005.6,6.05295225]
[1742714805851,1.2678,2005.7,2005.6,9.26075225]
[1742714807948,1.2678,2005.7,2005.6,6.13175225]
[1742714812055,1.2678,2005.7,2005.6,2.92395225]
[1742714812256,1.2678,2005.7,2005.6,6.13175225]
[1742714812560,1.2678,2005.7,2005.6,2.92395225]
[1742714812749,1.2678,2005.7,2005.6,6.13175225]
[1742714813557,1.3004,2005.8,2005.7,0.99733]
[1742714813745,1.3004,2005.8,2005.7,2.30403]
[1742714813746,1.3155,2005.8,2005.7,2.30403]
[1742714813950,1.3155,2005.8,2005.7,3.61203]
[1742714821562,1.3155,2005.8,2005.7,6.74003]
[1742714834669,1.3155,2005.8,2005.7,9.94783]
[1742714837165,1.3155,2005.8,2005.7,6.74003]
[1742714837566,1.3155,2005.8,2005.7,9.94783]
[1742714839073,1.3155,2005.8,2005.7,6.74003]
[1742714839371,1.3155,2005.8,2005.7,9.94783]